bitfinex/quotes_ETHUSD_20251111
["timestamp","ask_amount","ask_price","bid_price","bid_amount"]
[1762896140791,0.54306909,3448.4,3448.3,5.92192251]
[1762896140944,0.54306909,3448.4,3448.3,5.89292272]
[1762896140945,0.27156726,3448.4,3448.3,5.89292272]
[1762896141295,0.27156726,3448.4,3448.3,2.92164702]
[1762896141442,0.27156726,3448.4,3448.3,2.08074239]
[1762896141788,0.27156726,3448.4,3448.3,2.56954239]
[1762896144450,0.27356726,3448.4,3448.3,2.56954239]
[1762896144786,0.27356726,3448.4,3448.3,5.46952209]
[1762896145169,0.27356726,3448.4,3448.3,5.94632209]
[1762896145402,0.77346726,3448.4,3448.3,2.08074239]
[1762896145746,0.77346726,3448.4,3448.3,1.090504]
[1762896146591,1.04490479,3448.4,3448.3,1.090504]
[1762896146993,1.46230479,3448.4,3448.3,0.684]
[1762896147199,4.36220039,3448.4,3448.3,0.684]
[1762896147896,4.36220039,3448.4,3448.3,0.001]
[1762896148200,3.94480039,3448.4,3448.3,0.684]
[1762896148357,4.36220039,3448.4,3448.3,0.684]
[1762896148560,1.46230479,3448.4,3448.3,0.684]
[1762896149797,4.36220039,3448.4,3448.3,0.684]
[1762896150297,5.08859499,3448.4,3448.3,0.684]
[1762896150463,4.67119499,3448.4,3448.3,0.684]
[1762896150798,2.18885915,3448.4,3448.3,0.684]
[1762896150976,4.36236015,3448.4,3448.3,0.684]
[1762896152416,1.46246455,3448.4,3448.3,0.684]
[1762896152590,1.04506455,3448.4,3448.3,0.684]
[1762896153498,3.94496015,3448.4,3448.3,0.684]
[1762896153725,1.04506455,3448.4,3448.3,0.684]
[1762896153918,1.46246455,3448.4,3448.3,0.684]
[1762896154209,0.54516455,3448.4,3448.3,0.684]
[1762896156485,0.54516455,3448.4,3448.3,1.1341]
[1762896156907,0.54516455,3448.4,3448.3,6.21616016]
[1762896157082,0.54516455,3448.4,3448.3,6.18716037]
[1762896157283,0.27356726,3448.4,3448.3,6.18716037]
[1762896157685,0.27356726,3448.4,3448.3,3.28718067]
[1762896157884,0.27356726,3448.4,3448.3,2.79328067]
[1762896158118,0.27356726,3448.4,3448.3,6.59328067]
[1762896158295,0.54512758,3448.4,3448.3,4.484]
[1762896158490,0.54512758,3448.4,3448.3,8.2395837]
[1762896158696,0.54512758,3448.4,3448.3,8.7334837]
[1762896159410,0.27356726,3448.4,3448.3,8.7334837]
[1762896160721,0.27356726,3448.4,3448.3,23.2334837]
[1762896160880,0.27356726,3448.4,3448.3,26.12503603]
[1762896162299,0.27356726,3448.4,3448.3,22.73115633]
[1762896162500,0.27356726,3448.4,3448.3,23.22505633]
[1762896162701,0.27356726,3448.4,3448.3,26.12503603]
[1762896162912,0.27351265,3448.4,3448.3,26.12503603]
[1762896163223,0.27351265,3448.4,3448.3,23.22505633]
[1762896163620,0.27351265,3448.4,3448.3,26.12503603]
[1762896165242,0.002,3448.7,3448.3,26.12503603]
[1762896165243,0.002,3448.7,3448.6,3.30523142]
[1762896165434,0.002,3448.7,3448.6,14.06604363]
[1762896165594,0.002,3448.7,3448.6,14.03704636]
[1762896166093,0.002,3448.7,3448.6,28.53704636]
[1762896167818,0.002,3448.7,3448.6,18.24715633]
[1762896168013,0.002,3448.7,3448.6,21.82988375]
[1762896168324,0.4312,3448.7,3448.6,18.48005633]
[1762896168526,0.4312,3448.7,3448.6,15.588504]
[1762896168725,0.002,3448.7,3448.6,16.038604]
[1762896168924,0.002,3448.7,3448.6,1.538604]
[1762896169928,0.002,3448.7,3448.6,1.088504]
[1762896170126,0.9222,3448.7,3448.6,0.683]
[1762896170533,0.9222,3448.7,3448.6,4.20948735]
[1762896171253,0.4312,3448.7,3448.6,4.20948735]
[1762896171419,0.9222,3448.7,3448.6,4.20948735]
[1762896174762,4.84593983,3448.7,3448.6,0.683]
[1762896174923,1.94629649,3448.7,3448.6,0.683]
[1762896175128,4.09335309,3448.7,3448.6,0.683]
[1762896175828,4.59335309,3448.7,3448.6,0.683]
[1762896176129,4.09335309,3448.7,3448.6,0.683]
[1762896177361,4.36484314,3448.7,3448.6,0.683]
[1762896180263,3.87384314,3448.7,3448.6,0.683]
[1762896180767,4.33624314,3448.7,3448.6,0.683]
[1762896180939,3.39981151,3448.5,3448.4,3.52748735]
[1762896181143,3.97601131,3448.5,3448.4,4.20948735]
[1762896181340,5.22301943,3448.5,3448.4,4.20948735]
[1762896183443,4.72301943,3448.5,3448.4,4.20948735]
[1762896183678,5.22301943,3448.5,3448.4,4.20948735]
[1762896184958,5.22301943,3448.5,3448.4,0.001]
[1762896184959,10.80231646,3448.5,3448.4,0.001]
[1762896185312,5.0336364,3448.4,3448.3,0.001]
[1762896185481,7.17079318,3448.4,3448.3,0.001]
[1762896185781,7.14174438,3448.4,3448.3,0.001]
[1762896185951,5.0338887,3448.1,3448.0,0.001]
[1762896186152,5.61376372,3448.1,3448.0,0.001]
[1762896186352,6.86077184,3448.1,3448.0,0.001]
[1762896186555,7.54377184,3448.1,3448.0,0.001]
[1762896188159,7.04377184,3448.1,3448.0,0.001]
[1762896188660,7.54377184,3448.1,3448.0,0.001]
[1762896190477,7.04377184,3448.1,3448.0,0.001]
[1762896190678,6.58137184,3448.1,3448.0,0.001]
[1762896190900,4.57666372,3448.1,3448.0,0.4598]
[1762896191272,3.44292292,3448.1,3448.0,0.4598]
[1762896191681,4.36332292,3448.1,3448.0,0.001]
[1762896191881,4.86332292,3448.1,3448.0,0.001]
[1762896192218,0.54277502,3448.1,3448.0,0.4598]
[1762896192378,3.90862292,3448.1,3448.0,0.001]
[1762896193383,4.40862292,3448.1,3448.0,0.001]
[1762896193580,1.00847502,3448.1,3448.0,0.001]
[1762896193782,3.44292292,3448.1,3448.0,0.001]
[1762896193983,3.44292292,3448.1,3448.0,0.4598]
[1762896194482,0.54277502,3448.1,3448.0,0.4598]
[1762896194685,3.44292292,3448.1,3448.0,0.4598]
[1762896195601,0.54277502,3448.1,3448.0,0.4598]
[1762896195805,0.54277502,3448.1,3448.0,0.9132]
[1762896196014,3.44292292,3448.1,3448.0,0.001]
[1762896196214,3.90102292,3448.1,3448.0,0.001]
[1762896197709,0.54277502,3448.1,3448.0,0.4598]
[1762896198143,3.17153541,3448.1,3448.0,0.4598]
[1762896198309,0.27088356,3448.1,3448.0,0.4598]
[1762896198510,0.54176712,3448.1,3448.0,0.4598]
[1762896198910,0.54176702,3448.1,3448.0,0.4598]
[1762896199326,3.44191492,3448.1,3448.0,0.4598]
[1762896199927,3.90761492,3448.1,3448.0,0.001]
[1762896200149,4.86241492,3448.1,3448.0,0.001]
[1762896201214,5.63885683,3448.1,3448.0,0.001]
[1762896201446,5.63885683,3448.1,3448.0,0.683]
[1762896202358,5.18405683,3448.1,3448.0,0.683]
[1762896202861,4.68405683,3448.1,3448.0,0.683]
[1762896204054,4.68495275,3448.1,3448.0,0.683]
[1762896204571,3.44281084,3448.1,3448.0,0.683]
[1762896205559,3.44281084,3448.1,3448.0,1.1418]
[1762896205725,3.44281084,3448.1,3448.0,4.66828735]
[1762896206462,3.44281084,3448.1,3448.0,4.20948735]
[1762896206759,3.90091084,3448.1,3448.0,4.20948735]
[1762896206964,4.40091084,3448.1,3448.0,4.20948735]
[1762896207161,3.90091084,3448.1,3448.0,4.20948735]
[1762896207466,3.44281084,3448.1,3448.0,4.20948735]
[1762896207652,3.44281084,3448.1,3448.0,4.67678735]
[1762896208165,0.54266294,3448.1,3448.0,5.14338735]
[1762896208763,0.54266294,3448.1,3448.0,11.02763823]
[1762896208925,0.54266294,3448.1,3448.0,13.92787024]
[1762896208926,0.27133147,3448.1,3448.0,13.92787024]
[1762896209125,0.27133147,3448.1,3448.0,10.40138289]
[1762896209365,0.002,3448.4,3448.3,2.8999797]
[1762896209666,0.54502178,3448.4,3448.3,7.4001847]
[1762896209828,0.54502178,3448.4,3448.3,2.93843028]
[1762896210860,0.54502178,3448.4,3448.3,1.1493]
[1762896211072,0.54502178,3448.4,3448.3,0.682]
[1762896211226,0.54502178,3448.4,3448.3,1.1493]
[1762896211875,0.54502178,3448.4,3448.3,15.6493]
[1762896212650,0.54502178,3448.4,3448.3,21.04425442]
[1762896212850,0.54502178,3448.4,3448.3,26.92616668]
[1762896213054,0.27351089,3448.4,3448.3,26.92616668]
[1762896213978,0.27351089,3448.4,3448.3,24.02618698]
[1762896214178,0.74871089,3448.4,3448.3,15.182]
[1762896214477,0.27351089,3448.4,3448.3,15.182]
[1762896214977,0.27351089,3448.4,3448.3,1.1493]
[1762896215569,0.27351089,3448.4,3448.3,1.6159]
[1762896216476,0.27351089,3448.4,3448.3,1.1493]
[1762896216647,0.54470218,3448.4,3448.3,0.682]
[1762896216845,0.54470218,3448.4,3448.3,1.1493]
[1762896217880,0.54470218,3448.4,3448.3,0.682]
[1762896218178,3.86819778,3448.4,3448.0,0.001]
[1762896218378,3.3195479,3448.1,3448.0,0.001]
[1762896218584,3.3195479,3448.1,3448.0,0.682]
[1762896218585,4.35505008,3448.1,3448.0,0.682]
[1762896219289,4.85505008,3448.1,3448.0,0.682]
[1762896219955,4.35505008,3448.1,3448.0,0.682]
[1762896220156,4.85505008,3448.1,3448.0,0.682]
[1762896220655,0.54270218,3448.1,3448.0,1.1493]
[1762896220872,0.54270218,3448.1,3448.0,2.02106933]
[1762896221695,0.54270218,3448.1,3448.0,9.84965576]
[1762896221696,0.27151089,3448.1,3448.0,9.84965576]
[1762896222196,0.002,3448.4,3448.3,3.3054837]
[1762896222396,0.54500004,3448.4,3448.3,9.38213812]
[1762896222559,0.54500004,3448.4,3448.3,11.69002462]
[1762896222761,0.54500004,3448.4,3448.3,26.19002462]
[1762896222762,0.27350002,3448.4,3448.3,26.19002462]
[1762896222966,0.002,3448.4,3448.3,26.19002462]
[1762896225871,0.002,3448.4,3448.3,25.72342462]
[1762896226391,0.002,3448.4,3448.3,17.4895865]
[1762896226895,0.002,3448.4,3448.3,20.3895662]
[1762896227396,0.002,3448.4,3448.3,20.8561662]
[1762896227603,0.002,3448.4,3448.3,26.19002462]
[1762896227902,0.002,3448.4,3448.3,26.19102462]
[1762896229710,0.002,3448.4,3448.3,29.71751197]
[1762896230923,0.002,3448.4,3448.3,26.81753227]
[1762896231132,0.002,3448.4,3448.3,29.71751197]
[1762896231439,0.002,3448.4,3448.3,21.20817785]
[1762896231599,0.002,3448.4,3448.3,24.78915755]
[1762896234430,0.002,3448.4,3448.3,29.71751197]
[1762896238496,0.002,3448.4,3448.3,24.78915755]
[1762896238800,0.002,3448.4,3448.3,29.71751197]
[1762896240529,0.002,3448.4,3448.3,29.25091197]
[1762896240736,0.002,3448.4,3448.3,20.74157785]
[1762896240939,1.19468848,3448.4,3448.3,18.02748735]
[1762896241096,1.46618064,3448.4,3448.3,18.70848735]
[1762896241504,4.36607624,3448.4,3448.3,0.682]
[1762896241809,4.86607624,3448.4,3448.3,0.682]
[1762896243004,10.92817146,3448.4,3448.3,0.682]
[1762896244059,5.99981704,3448.4,3448.3,0.682]
[1762896244257,1.0074007,3448.4,3448.3,0.682]
[1762896245738,0.5449007,3448.4,3448.3,0.682]
[1762896246703,0.5449007,3448.4,3448.3,1.1357]
[1762896246903,0.5449007,3448.4,3448.3,4.20848735]
[1762896247655,0.27348848,3448.4,3448.3,10.06354177]
[1762896247953,0.27348848,3448.4,3448.3,12.96352147]
[1762896248301,0.27348848,3448.4,3448.3,13.36902547]
[1762896248501,0.002,3448.4,3448.3,10.46904577]
[1762896248697,0.002,3448.4,3448.3,14.9960582]
[1762896249240,0.002,3448.4,3448.3,26.5960785]
[1762896249440,0.002,3448.4,3448.3,29.4960582]
[1762896249824,0.002,3448.4,3448.3,24.56770378]
[1762896250135,0.002,3448.4,3448.3,21.19472408]
[1762896250326,0.002,3448.4,3448.3,24.09470378]
[1762896251305,0.27343491,3448.4,3448.3,21.19472408]
[1762896251723,0.27343491,3448.4,3448.3,24.09470378]
[1762896251927,0.002,3448.4,3448.3,24.09470378]
[1762896252129,0.002,3448.4,3448.3,25.70144458]
[1762896252941,0.002,3448.7,3448.3,38.86256215]
[1762896253145,0.002,3448.8,3448.7,11.16000571]
[1762896253345,0.002,3448.8,3448.7,13.32790101]
[1762896253506,0.002,3448.8,3448.7,13.80090101]
[1762896253704,0.002,3448.8,3448.7,12.76670571]
[1762896253908,0.002,3448.8,3448.7,15.17118764]
[1762896254658,0.002,3448.8,3448.7,8.45007007]
[1762896256428,0.002,3448.8,3448.7,15.17118764]
[1762896260053,0.002,3448.8,3448.7,16.20538294]
[1762896260569,0.002,3448.8,3448.7,16.32149206]
[1762896262838,0.002,3448.8,3448.7,15.28729676]
[1762896263345,0.002,3448.8,3448.7,16.31914827]
[1762896264775,0.002,3448.8,3448.7,19.37614827]
[1762896264920,0.002,3448.8,3448.7,16.31914827]
[1762896265666,0.002,3449.0,3448.9,3.30497919]
[1762896265956,0.002,3449.5,3449.4,6.81904625]
[1762896266252,0.002,3449.5,3449.4,9.09848705]
[1762896266642,0.002,3449.5,3449.4,15.53848705]
[1762896266844,0.002,3449.5,3449.4,16.00698705]
[1762896269068,0.002,3449.5,3449.4,15.53848705]
[1762896269265,0.4515,3449.5,3449.4,17.6270391]
[1762896269675,0.9371,3449.5,3449.4,17.6270391]
[1762896269837,0.9371,3449.5,3449.4,16.4932983]
[1762896270159,0.4515,3449.5,3449.4,16.4932983]
[1762896270366,0.4515,3449.5,3449.4,10.0532983]
[1762896270528,0.4515,3449.5,3449.4,7.49904625]
[1762896271542,0.002,3449.5,3449.4,9.09848705]
[1762896271746,0.002,3449.5,3449.4,9.56698705]
[1762896271975,0.002,3449.5,3449.4,9.09848705]
[1762896273957,0.002,3449.5,3449.4,9.56698705]
[1762896274183,0.002,3449.5,3449.4,12.18735601]
[1762896274981,0.002,3449.5,3449.4,17.26182134]
[1762896276316,0.486,3450.3,3449.7,0.405504]
[1762896276524,0.486,3450.3,3450.0,2.89852808]
[1762896276720,0.486,3450.3,3450.1,0.679]
[1762896277086,0.4495,3450.2,3450.1,0.679]
[1762896277483,0.9351,3450.2,3450.1,0.679]
[1762896278227,1.20603688,3450.2,3450.1,0.679]
[1762896280120,1.20803688,3450.2,3450.1,0.679]
[1762896281433,1.47931567,3450.2,3450.1,0.679]
[1762896281987,1.47931567,3450.2,3450.1,4.19148735]
[1762896284839,4.37769837,3450.2,3450.1,4.19148735]
[1762896285050,5.10529775,3450.2,3450.1,4.19148735]
[1762896285841,5.10529775,3450.2,3449.5,3.51248735]
[1762896285842,2.20691505,3450.2,3449.5,3.51248735]
[1762896285991,0.1871,3449.6,3449.5,3.51248735]
[1762896286197,1.66441567,3449.6,3449.5,4.19148735]
[1762896288245,1.17881567,3449.6,3449.5,4.19148735]
[1762896289338,1.66441567,3449.6,3449.5,4.19148735]
[1762896289912,1.66441567,3449.6,3449.5,18.69148735]
[1762896290420,1.66441567,3449.6,3449.5,21.59045821]
[1762896290642,1.17881567,3449.6,3449.5,21.59045821]
[1762896290792,1.17881567,3449.6,3449.5,18.69148735]
[1762896291127,1.66441567,3449.6,3449.5,18.69148735]
[1762896292541,1.66441567,3449.6,3449.5,4.19148735]
[1762896294118,3.11402713,3449.6,3449.5,4.19148735]
[1762896294318,3.76530289,3449.6,3449.5,0.679]
[1762896295516,4.26530289,3449.6,3449.5,0.679]
[1762896295726,2.89897086,3449.5,3448.6,0.001]
[1762896295895,3.63994334,3448.7,3448.6,0.001]
[1762896296095,3.66899214,3448.7,3448.6,0.68]
[1762896296296,3.13994334,3448.7,3448.6,0.68]
[1762896297409,0.2403,3448.7,3448.6,0.68]
[1762896297610,3.13994334,3448.7,3448.6,0.68]
[1762896297815,2.89946899,3449.0,3448.6,0.68]
[1762896298008,2.89942778,3449.0,3448.6,0.68]
[1762896298608,0.2403,3448.7,3448.6,0.68]
[1762896300807,2.89931167,3449.1,3448.6,0.68]
[1762896301335,3.63945237,3449.3,3448.6,0.68]
[1762896301536,0.7403,3449.3,3448.6,0.68]
[1762896301963,3.1389408,3449.9,3448.7,0.43450043]
[1762896302274,1.1337408,3449.8,3448.9,7.97392189]
[1762896302476,2.89881055,3449.7,3449.0,15.179]
[1762896303385,3.13899783,3449.9,3449.0,15.179]
[1762896303689,0.2403,3449.9,3449.0,15.179]
[1762896304485,0.002,3450.0,3449.0,15.179]
[1762896304628,0.2403,3449.5,3449.0,15.179]
[1762896305842,2.8986353,3449.9,3449.0,15.179]
[1762896305843,0.2403,3449.4,3449.0,14.5]
[1762896306046,3.399223,3449.2,3449.1,0.679]
[1762896306263,4.88870934,3449.2,3449.1,0.679]
[1762896306672,2.89960766,3448.8,3448.6,0.001]
[1762896306833,3.67024713,3448.7,3448.6,0.001]
[1762896307171,0.54124099,3448.7,3448.6,0.679]
[1762896307474,3.44088433,3448.7,3448.6,0.679]
[1762896307639,0.78154099,3448.7,3448.6,0.679]
[1762896308170,3.68118433,3448.7,3448.6,0.679]
[1762896309175,4.88925094,3448.7,3448.6,0.679]
[1762896310180,6.02299174,3448.7,3448.6,0.679]
[1762896316080,6.18199174,3448.7,3448.6,0.679]
[1762896316845,6.18199174,3448.7,3448.6,0.001]
[1762896317184,6.68199174,3448.7,3448.6,0.001]
[1762896320281,3.8998956,3448.4,3448.3,0.001]
[1762896320483,6.35820066,3448.4,3448.3,0.001]
[1762896320807,6.72765186,3448.4,3448.3,0.001]
[1762896320987,6.84386319,3448.4,3448.3,0.001]
[1762896323072,5.0337205,3448.3,3448.2,0.001]
[1762896323263,6.7113769,3448.3,3448.2,0.001]
[1762896323465,6.6823281,3448.3,3448.2,0.001]
[1762896324087,5.0338887,3448.1,3448.0,0.001]
[1762896324292,5.60417849,3448.1,3448.0,0.001]
[1762896324494,4.02298438,3447.7,3447.6,1e-08]
[1762896324715,5.72701497,3447.7,3447.6,1e-08]
[1762896324879,5.93826617,3447.7,3447.6,1e-08]
[1762896325085,6.05449911,3447.7,3447.6,1e-08]
[1762896325712,6.05449911,3447.7,3446.7,0.001]
[1762896325713,4.30674573,3446.8,3446.7,0.001]
[1762896325890,4.53574027,3445.9,3445.4,0.001]
[1762896326074,5.76588126,3445.9,3445.4,0.001]
[1762896326395,4.76588126,3445.9,3445.4,0.001]
[1762896326578,6.02015573,3445.9,3445.4,0.001]
[1762896328422,6.76045573,3445.9,3445.4,0.001]
[1762896328919,6.52015573,3445.9,3445.4,0.001]
[1762896330119,6.02015573,3445.9,3445.4,0.001]
[1762896331283,6.76045573,3445.9,3445.4,0.001]
[1762896335338,6.87674578,3445.9,3445.4,0.001]
[1762896337033,7.28224978,3445.9,3445.4,0.001]
[1762896337547,2.90233638,3445.5,3445.4,0.001]
[1762896337834,6.52398478,3445.5,3445.4,0.001]
[1762896338041,5.78538478,3445.5,3445.4,0.001]
[1762896338329,6.02568478,3445.5,3445.4,0.001]
[1762896338532,5.48444379,3445.5,3445.4,0.001]
[1762896338733,6.02224761,3445.5,3445.4,0.001]
[1762896341341,5.78194761,3445.5,3445.4,0.001]
[1762896341797,6.02224761,3445.5,3445.4,0.001]
[1762896343002,6.76254761,3445.5,3445.4,0.001]
[1762896344627,6.02224761,3445.5,3445.4,0.001]
[1762896345196,5.78194761,3445.5,3445.4,0.001]
[1762896345524,5.78194761,3445.5,3445.4,0.4599]
[1762896345826,6.52224761,3445.5,3445.4,0.001]
[1762896346525,6.76254761,3445.5,3445.4,0.001]
[1762896347564,7.24134761,3445.5,3445.4,0.001]
[1762896348424,6.76254761,3445.5,3445.4,0.001]
[1762896349035,6.52224761,3445.5,3445.4,0.001]
[1762896349440,6.52224761,3445.5,3445.1,0.001]
[1762896349441,3.9025891,3445.2,3445.1,0.001]
[1762896349661,5.64293372,3445.2,3445.1,0.001]
[1762896349867,5.88323372,3445.2,3445.1,0.001]
[1762896350065,5.14293372,3445.2,3445.1,0.001]
[1762896350241,4.00919292,3445.2,3445.1,0.001]
[1762896350423,4.71725953,3445.2,3445.1,0.001]
[1762896351280,4.64845953,3445.2,3445.1,0.4599]
[1762896352646,5.78220033,3445.2,3445.1,0.27089954]
[1762896352981,2.90267336,3445.1,3445.0,0.001]
[1762896353190,3.94047718,3445.1,3445.0,0.001]
[1762896353484,4.69475165,3445.1,3445.0,0.001]
[1762896354392,4.81525165,3445.1,3445.0,0.001]
[1762896354574,4.84430045,3445.1,3445.0,0.001]
[1762896354755,5.26950045,3445.1,3445.0,0.001]
[1762896354954,9.7838318,3445.1,3445.0,0.001]
[1762896355154,1.1337408,3445.0,3444.3,0.6609]
[1762896355479,1.1337408,3445.0,3444.4,0.4788]
[1762896355480,2.90317898,3444.5,3444.4,0.4788]
[1762896355678,3.4409828,3444.5,3444.4,0.4788]
[1762896355865,3.4409828,3444.5,3444.4,0.9678]
[1762896356790,0.53780382,3444.5,3444.4,0.9678]
[1762896356961,3.4409828,3444.5,3444.4,0.9678]
[1762896357685,0.53780382,3444.5,3444.4,0.9678]
[1762896358555,3.4409828,3444.5,3444.4,0.9704]
[1762896358867,0.53780382,3444.5,3444.4,0.9704]
[1762896359467,3.4409828,3444.5,3444.4,0.9704]
[1762896359678,0.53780382,3444.5,3444.4,0.9704]
[1762896360280,3.4409828,3444.5,3444.4,0.9704]
[1762896360990,3.4409828,3444.5,3444.0,0.1815]
[1762896360991,0.65830382,3444.5,3444.0,0.1815]
[1762896361193,3.40360046,3444.0,3443.9,0.613]
[1762896361401,3.94140428,3444.0,3443.9,0.613]
[1762896361690,3.94140428,3444.0,3443.9,1.0754]
[1762896361691,1.03780382,3444.0,3443.9,1.0754]
[1762896361851,3.94140428,3444.0,3443.9,1.0754]
[1762896362556,3.94140428,3444.0,3443.9,0.613]
[1762896362757,1.15830382,3444.0,3443.5,0.4814]
[1762896362978,2.90308279,3444.7,3443.5,0.4814]
[1762896362979,0.53780382,3443.9,3443.5,1.1594]
[1762896363189,0.53780382,3443.8,3443.5,1.1594]
[1762896363498,0.53780382,3443.7,3443.6,3.38533773]
[1762896363862,0.53780382,3443.7,3443.6,3.84773773]
[1762896364058,0.53780382,3443.7,3443.6,4.6091844]
[1762896364659,0.53780382,3443.7,3443.6,9.54871575]
[1762896365795,0.53780382,3443.7,3443.6,0.9438]
[1762896366034,0.53780382,3443.7,3443.6,0.4624]
[1762896366234,3.44165723,3443.7,3443.6,0.4624]
[1762896366435,0.53780382,3443.7,3443.6,0.9438]
[1762896369135,0.53780382,3443.7,3443.5,0.679]
[1762896369335,3.94174155,3443.6,3443.5,0.679]
[1762896369538,4.66913037,3443.6,3443.5,0.679]
[1762896369834,4.79233037,3443.6,3443.5,0.679]
[1762896370221,4.66913037,3443.6,3443.5,0.679]
[1762896371017,1.76519264,3443.6,3443.5,0.679]
[1762896371336,4.66913037,3443.6,3443.5,0.679]
[1762896372942,4.6718704,3443.6,3443.5,0.679]
[1762896373659,1.76793267,3443.6,3443.5,1.1414]
[1762896373954,3.94448158,3443.6,3443.5,0.679]
[1762896374328,3.94448158,3443.6,3443.5,1.1414]
[1762896374932,3.94448158,3443.6,3443.5,0.679]
[1762896375464,1.04054385,3443.6,3443.5,0.679]
[1762896375617,3.94448158,3443.6,3443.5,0.679]
[1762896375820,1.04054385,3443.6,3443.5,1.1414]
[1762896376016,0.54054385,3443.6,3443.5,1.6228]
[1762896376332,0.54054385,3443.6,3443.5,6.72471135]
[1762896376667,0.54054385,3443.6,3443.5,9.62873342]
[1762896377755,0.26890191,3443.6,3443.5,24.53423742]
[1762896378079,0.26890191,3443.6,3443.5,0.9448]
[1762896378080,0.27159411,3443.6,3443.5,0.9448]
[1762896378223,0.27159411,3443.6,3443.5,1.6228]
[1762896378224,0.54324599,3443.6,3443.5,1.6228]
[1762896378756,0.54324599,3443.6,3443.5,1.1414]
[1762896379421,2.90393773,3443.6,3443.5,1.1414]
[1762896379651,3.55012003,3443.6,3443.5,1.1414]
[1762896379960,0.54343712,3443.6,3443.5,1.6228]
[1762896381161,3.94737485,3443.6,3443.5,0.679]
[1762896381383,3.94737485,3443.6,3443.5,0.001]
[1762896381384,5.23066445,3443.6,3443.5,0.001]
[1762896381676,11.0953958,3443.6,3443.5,0.001]
[1762896381822,11.066347,3443.6,3443.5,0.001]
[1762896382431,5.20161565,3443.6,3443.5,0.001]
[1762896383857,5.08111565,3443.6,3443.5,0.4634]
[1762896384063,0.54343712,3443.6,3443.5,0.9448]
[1762896385359,0.54343712,3443.6,3443.5,1.32980703]
[1762896385561,0.54343712,3443.6,3443.5,0.9448]
[1762896386524,0.54343712,3443.6,3443.5,1.6228]
[1762896386724,0.54343712,3443.6,3443.5,4.52682207]
[1762896386964,0.27171856,3443.6,3443.5,4.52682207]
[1762896387128,0.54355607,3443.6,3443.5,4.52682207]
[1762896387328,0.54355607,3443.6,3443.5,20.44449856]
[1762896387662,0.27171856,3443.6,3443.5,20.44449856]
[1762896388130,0.54360957,3443.6,3443.5,20.44449856]
[1762896388939,0.27171856,3443.6,3443.5,20.85000256]
[1762896390481,0.27171856,3443.6,3443.5,6.35000256]
[1762896390975,0.27171856,3443.6,3443.5,20.85000256]
[1762896391977,0.27171856,3443.6,3443.5,3.04047649]
[1762896392152,0.27171856,3443.6,3443.5,4.52682207]
[1762896392351,0.27171856,3443.6,3443.5,19.43232607]
[1762896392967,2.90310688,3444.6,3444.0,2.9035432]
[1762896393168,4.03684768,3444.6,3444.5,0.4593]
[1762896393484,4.5803933,3444.6,3444.5,1.1373]
[1762896393978,4.58038111,3444.6,3444.5,1.1373]
[1762896396389,1.67728642,3444.6,3444.5,1.1373]
[1762896396595,4.58038111,3444.6,3444.5,1.1373]
[1762896396889,5.00868111,3444.6,3444.5,0.678]
[1762896397057,5.2369083,3444.6,3444.5,0.678]
[1762896397389,6.33800006,3444.6,3444.5,0.678]
[1762896397592,6.45850006,3444.6,3444.5,0.678]
[1762896398465,6.33800006,3444.6,3444.5,0.678]
[1762896401001,1.87286457,3444.6,3444.5,1.1373]
[1762896401286,1.87286457,3444.6,3444.5,1.6153]
[1762896401287,0.54346929,3444.6,3444.5,1.6153]
[1762896402894,3.44656398,3444.6,3444.5,1.1373]
[1762896403198,4.37486398,3444.6,3444.5,0.679]
[1762896403357,5.23855515,3444.6,3444.5,0.679]
[1762896405000,5.11805515,3444.6,3444.5,0.001]
[1762896406909,4.68975515,3444.6,3444.5,0.001]
[1762896407084,4.81025515,3444.6,3444.5,0.001]
[1762896407469,4.68975515,3444.6,3444.5,0.001]
[1762896407676,4.68975515,3444.6,3444.5,0.4603]
[1762896407973,0.54346929,3444.6,3444.5,0.4603]
[1762896408174,0.54346929,3444.6,3444.5,0.9383]
[1762896408605,0.54346929,3444.6,3444.5,3.84147898]
[1762896409306,0.54346929,3444.6,3444.5,0.9383]
[1762896409877,0.54346929,3444.6,3444.5,3.84147898]
[1762896410295,0.54346929,3444.6,3444.5,0.9383]
[1762896410701,0.54346929,3444.6,3444.5,3.84147898]
[1762896411313,0.54329403,3444.6,3444.5,3.84147898]
[1762896411720,0.54329403,3444.6,3444.5,4.60319156]
[1762896413024,0.54329403,3444.6,3444.5,1.70001258]
[1762896413326,0.54329403,3444.6,3444.5,0.4603]
[1762896413696,0.54329403,3444.6,3444.5,0.9383]
[1762896415803,0.54329403,3444.6,3444.5,3.84147898]
[1762896416728,0.54329403,3444.6,3444.5,0.9383]
[1762896417626,0.54329403,3444.6,3444.5,0.001]
[1762896417627,0.66379403,3444.6,3444.5,0.001]
[1762896417833,3.56688872,3444.6,3444.5,0.678]
[1762896418037,1.20569209,3444.6,3444.5,1.1631]
[1762896418237,0.54329403,3444.6,3444.5,1.6221]
[1762896418739,0.54329403,3444.6,3444.5,1.1631]
[1762896419097,0.54329403,3444.6,3444.5,1.6221]
[1762896420236,0.54329403,3444.6,3444.5,5.66768499]
[1762896420438,0.54329403,3444.6,3444.5,0.678]
[1762896421145,0.54329403,3444.6,3444.5,1.1631]
[1762896422762,3.56688872,3444.6,3444.5,0.001]
[1762896422938,3.56688872,3444.6,3444.5,0.678]
[1762896425247,5.65487832,3444.6,3444.5,0.001]
[1762896425579,5.65487832,3444.6,3444.1,0.001]
[1762896425580,3.40326326,3444.4,3444.3,0.677]
[1762896425756,5.60934689,3444.4,3444.3,0.677]
[1762896425946,6.15814689,3444.4,3444.3,0.677]
[1762896426147,5.62909809,3444.4,3444.3,0.677]
[1762896426348,6.4290397,3444.4,3444.3,0.677]
[1762896427788,2.90343185,3444.2,3444.1,0.001]
[1762896427958,3.94672588,3444.2,3444.1,0.001]
[1762896428157,4.37192588,3444.2,3444.1,0.001]